fUSD/lending_fUSD_20240518
["ID","MTS","AMOUNT","RATE_DAILY","PERIOD"]
[327407566,1716045059388,-500.0,0.00029586,2]
[327407567,1716045059398,-500.0,0.00029586,2]
[327407568,1716045059407,-500.0,0.00029586,2]
[327407569,1716045059417,-500.0,0.00029586,2]
[327407570,1716045059427,-500.0,0.00029586,2]
[327407571,1716045059436,-500.0,0.00029586,2]
[327407572,1716045059446,-500.0,0.00029586,2]
[327407573,1716045059456,-244.27,0.00029586,2]
[327407574,1716045059465,-500.0,0.00029586,2]
[327407575,1716045059474,-500.0,0.00029586,2]
[327407576,1716045059483,-1212.26,0.00029586,2]
[327407577,1716045059492,-563.08,0.00029586,2]
[327407578,1716045059502,-195.736738,0.00029586,7]
[327407579,1716045059511,-569.11,0.00029586,2]
[327407580,1716045059520,-603.72,0.00029586,2]
[327407581,1716045059530,-151.0,0.00029586,7]
[327407582,1716045059539,-584.366467,0.00029586,7]
[327407583,1716045059548,-584.366467,0.00029586,7]
[327407584,1716045059558,-151.0,0.00029586,7]
[327407585,1716045059567,-500.0,0.00029586,2]
[327407586,1716045059576,-151.0,0.00029586,7]
[327407587,1716045059586,-500.0,0.00029586,2]
[327407588,1716045059595,-500.0,0.00029586,2]
[327407589,1716045059604,-500.0,0.00029586,2]
[327407590,1716045059613,-151.0,0.00029586,7]
[327407591,1716045059623,-500.0,0.00029586,2]
[327407592,1716045059637,-500.0,0.00029586,2]
[327407593,1716045059646,-500.0,0.00029586,2]
[327407594,1716045059656,-500.0,0.00029586,2]
[327407595,1716045059667,-151.0,0.00029586,7]
[327407596,1716045059679,-500.0,0.00029586,2]
[327407597,1716045059691,-151.0,0.00029586,7]
[327407598,1716045059700,-151.0,0.00029586,7]
[327407599,1716045059712,-500.0,0.00029586,2]
[327407600,1716045059722,-151.0,0.00029586,7]
[327407601,1716045059732,-500.0,0.00029586,2]
[327407602,1716045059741,-235.707106,0.00029586,7]
[327407603,1716045059751,-235.707106,0.00029586,7]
[327407604,1716045059760,-151.0,0.00029586,7]
[327407605,1716045059770,-151.0,0.00029586,7]
[327407606,1716045059780,-151.0,0.00029586,7]
[327407607,1716045059789,-151.0,0.00029586,7]
[327407608,1716045059798,-500.0,0.00029586,2]
[327407609,1716045059808,-500.0,0.00029587,2]
[327407610,1716045059818,-500.0,0.00029587,2]
[327407611,1716045059827,-500.0,0.00029587,2]
[327407612,1716045059836,-500.0,0.00029587,2]
[327407613,1716045059845,-500.0,0.00029587,2]
[327407614,1716045059855,-500.0,0.00029587,2]
[327407615,1716045059864,-500.0,0.00029587,2]
[327407616,1716045059874,-500.0,0.00029587,2]
[327407617,1716045059883,-500.0,0.00029587,2]
[327407618,1716045059892,-1041.11,0.00029587,2]
[327407619,1716045059902,-500.0,0.00029587,2]
[327407620,1716045059911,-557.27064206,0.00029858,2]
[327407621,1716045059920,-500.0,0.00029858,2]
[327407622,1716045059931,-1043.64,0.00029858,2]
[327407623,1716045059940,-1119.19,0.00029858,2]
[327407624,1716045059949,-596.81,0.00029858,2]
[327407625,1716045059959,-1994.59,0.00029858,2]
[327407626,1716045059968,-5522.26,0.00029858,2]
[327407627,1716045059977,-310.13119775,0.00029858,2]
[327407628,1716045059986,-870.82,0.00029859,2]
[327407629,1716045059995,-500.0,0.00029859,2]
[327407630,1716045060006,-500.0,0.00029859,2]
[327407631,1716045060016,-1650.41,0.00029859,2]
[327407632,1716045060026,-500.0,0.00029859,2]
[327407633,1716045060036,-500.0,0.00029859,2]
[327407634,1716045060046,-151.0,0.00029859,7]
[327407635,1716045060056,-500.0,0.00029859,2]
[327407636,1716045060066,-151.0,0.00029859,7]
[327407637,1716045060075,-151.0,0.00029859,7]
[327407638,1716045060084,-500.0,0.00029859,2]
[327407639,1716045060094,-151.0,0.00029859,7]
[327407640,1716045060104,-500.0,0.00029859,2]
[327407641,1716045060113,-203.344238,0.00029859,7]
[327407642,1716045060122,-500.0,0.00029859,2]
[327407643,1716045060131,-439.40249281,0.00029859,2]
[327407644,1716045060141,-500.0,0.00029859,2]
[327407645,1716045060151,-500.0,0.00029859,2]
[327407646,1716045060161,-500.0,0.00029859,2]
[327407647,1716045060171,-500.0,0.00029859,2]
[327407648,1716045060182,-500.0,0.00029859,2]
[327407649,1716045060191,-500.0,0.00029859,2]
[327407650,1716045060201,-500.0,0.00029859,2]
[327407651,1716045060212,-613.26,0.00029859,2]
[327407652,1716045060221,-500.0,0.00029859,2]
[327407653,1716045060231,-500.0,0.00029859,2]
[327407654,1716045060240,-500.0,0.00029859,2]
[327407655,1716045060250,-976.21,0.00029859,2]
[327407656,1716045060259,-500.0,0.00029859,2]
[327407657,1716045060269,-500.0,0.00029859,2]
[327407658,1716045060279,-812.72,0.00029859,2]
[327407659,1716045060289,-652.06,0.00029859,2]
[327407660,1716045060298,-500.0,0.00029859,2]
[327407661,1716045060309,-808.14,0.00029859,2]
[327407662,1716045060318,-831.83,0.00029859,2]
[327407663,1716045060328,-500.0,0.00029859,2]
[327407664,1716045060337,-500.0,0.00029859,2]
[327407665,1716045060347,-580.71,0.00029859,2]
[327407666,1716045060356,-803.27,0.00029859,2]
[327407667,1716045060365,-500.0,0.00029859,2]
[327407668,1716045060375,-500.0,0.00029859,2]
[327407669,1716045060384,-500.0,0.00029859,2]
[327407670,1716045060394,-500.0,0.00029859,2]
[327407671,1716045060404,-2214.71,0.00029859,2]
[327407672,1716045060414,-500.0,0.00029859,2]
[327407673,1716045060424,-839.57,0.00029859,2]
[327407674,1716045060434,-1249.93,0.00029859,2]
[327407675,1716045060444,-580.29,0.00029859,2]
[327407676,1716045060454,-5266.85,0.00029859,2]
[327407677,1716045060463,-500.0,0.00029859,2]
[327407678,1716045060473,-500.0,0.00029859,2]
[327407679,1716045060483,-500.0,0.00029859,2]
[327407680,1716045060493,-4861.52,0.00029859,2]
[327407681,1716045060503,-464.54,0.00029859,2]
[327407682,1716045060512,-500.0,0.00029859,2]
[327407683,1716045060522,-500.0,0.0002986,2]
[327407684,1716045060531,-500.0,0.0002986,2]
[327407685,1716045060540,-500.0,0.0002986,2]
[327407686,1716045060551,-500.0,0.0002986,2]
[327407687,1716045060560,-500.0,0.0002986,2]
[327407688,1716045060570,-500.0,0.0002986,2]
[327407689,1716045060579,-500.0,0.0002986,2]
[327407690,1716045060588,-645.15,0.0002986,2]
[327407691,1716045060597,-500.0,0.0002986,2]
[327407692,1716045060607,-182.28,0.0002986,2]
[327407693,1716045060616,-500.0,0.0002986,2]
[327407694,1716045060626,-500.0,0.0002986,2]
[327407695,1716045060641,-284.59191052,0.0002986,2]
[327407696,1716045060651,-500.0,0.0002986,2]
[327407697,1716045060661,-500.0,0.0002986,2]
[327407698,1716045060672,-500.0,0.0002986,2]
[327407699,1716045060681,-500.0,0.0002986,2]
[327407700,1716045060690,-500.0,0.0002986,2]
[327407701,1716045060699,-500.0,0.0002986,2]
[327407702,1716045060710,-500.0,0.0002986,2]
[327407703,1716045060721,-500.0,0.0002986,2]
[327407704,1716045060730,-533.61,0.0002986,2]
[327407705,1716045060739,-500.0,0.0002986,2]
[327407706,1716045060748,-500.0,0.0002986,2]
[327407707,1716045060758,-500.0,0.0002986,2]
[327407708,1716045060768,-500.0,0.0002986,2]
[327407709,1716045060778,-500.0,0.0002986,2]
[327407710,1716045060787,-500.0,0.0002986,2]
[327407711,1716045060796,-1366.41,0.0002986,2]
[327407712,1716045060805,-500.0,0.0002986,2]
[327407713,1716045060814,-500.0,0.0002986,2]
[327407714,1716045060823,-500.0,0.0002986,2]
[327407715,1716045060832,-500.0,0.0002986,2]
[327407716,1716045060842,-500.0,0.0002986,2]
[327407717,1716045060851,-500.0,0.0002986,2]
[327407718,1716045060860,-500.0,0.0002986,2]
[327407719,1716045060869,-500.0,0.0002986,2]
[327407720,1716045060878,-500.0,0.0002986,2]
[327407721,1716045060887,-500.0,0.0002986,2]
[327407722,1716045060896,-722.91,0.0002986,2]
[327407723,1716045060905,-500.0,0.0002986,2]
[327407724,1716045060914,-500.0,0.0002986,2]
[327407725,1716045060923,-500.0,0.0002986,2]
[327407726,1716045060932,-500.0,0.0002986,2]
[327407727,1716045060941,-209.05670532,0.0002986,2]
[327407728,1716045060950,-1099.16,0.0002986,2]
[327407729,1716045060959,-500.0,0.0002986,2]
[327407730,1716045060970,-500.0,0.0002986,2]
[327407731,1716045060979,-500.0,0.0002986,2]
[327407732,1716045060988,-500.0,0.0002986,2]
[327407733,1716045060997,-500.0,0.0002986,2]
[327407734,1716045061007,-500.0,0.0002986,2]
[327407735,1716045061016,-500.0,0.0002986,2]
[327407736,1716045061026,-500.0,0.0002986,2]
[327407737,1716045061035,-500.0,0.0002986,2]
[327407738,1716045061045,-500.0,0.0002986,2]
[327407739,1716045061054,-500.0,0.0002986,2]
[327407740,1716045061063,-500.0,0.0002986,2]
[327407741,1716045061072,-500.0,0.0002986,2]
[327407742,1716045061082,-613.89,0.0002986,2]
[327407743,1716045061091,-500.0,0.0002986,2]
[327407744,1716045061100,-500.0,0.0002986,2]
[327407745,1716045061109,-1212.26,0.0002986,2]
[327407746,1716045061119,-563.08,0.0002986,2]
[327407747,1716045061128,-569.11,0.0002986,2]
[327407748,1716045061138,-603.72,0.0002986,2]
[327407749,1716045061147,-500.0,0.0002986,2]
[327407750,1716045061157,-500.0,0.0002986,2]
[327407751,1716045061166,-500.0,0.0002986,2]
[327407752,1716045061176,-438.37417144,0.0002986,2]
[327407753,1716045061185,-500.0,0.0002986,2]
[327407754,1716045061194,-500.0,0.0002986,2]
[327407755,1716045061203,-500.0,0.0002986,2]
[327407756,1716045061212,-500.0,0.0002986,2]
[327407757,1716045061221,-500.0,0.0002986,2]
[327407758,1716045061231,-500.0,0.0002986,2]
[327407759,1716045061240,-500.0,0.0002986,2]
[327407760,1716045061250,-500.0,0.0002986,2]
[327407761,1716045061260,-500.0,0.00029861,2]
[327407762,1716045061269,-500.0,0.00029861,2]
[327407763,1716045061279,-500.0,0.00029861,2]
[327407764,1716045061289,-500.0,0.00029861,2]
[327407765,1716045061297,-500.0,0.00029861,2]
[327407766,1716045061307,-500.0,0.00029861,2]
[327407767,1716045061316,-500.0,0.00029861,2]
[327407768,1716045061326,-500.0,0.00029861,2]
[327407769,1716045061335,-500.0,0.00029861,2]
[327407770,1716045061345,-1041.11,0.00029861,2]
[327407771,1716045061354,-500.0,0.00029861,2]
[327407772,1716045061364,-151.0,0.00029861,7]
[327407773,1716045061375,-151.0,0.00029861,7]
[327407774,1716045061385,-151.0,0.00029861,7]
[327407775,1716045061395,-151.0,0.00029861,7]
[327407776,1716045061404,-180.17423478,0.00029863,2]
[327407777,1716045061414,-800.0,0.000299,10]
[327407778,1716045061423,-252.72398,0.00029999,7]
[327407779,1716045061560,-151.0,0.00029999,7]
[327407780,1716045061570,-151.0,0.00029999,7]
[327407781,1716045061579,-151.0,0.00029999,7]
[327407782,1716045061589,-1565.43529346,0.0003,2]
[327407783,1716045061598,-6712.80663397,0.0003,3]
[327407784,1716045061608,-280.72686924,0.0003,4]
[327407785,1716045061617,-151.0,0.0003,7]
[327407786,1716045061627,-225.708701,0.0003,7]
[327407787,1716045061641,-241.246773,0.0003,7]
[327407788,1716045061650,-151.0,0.0003,7]
[327407789,1716045061659,-166.05,0.00030017,2]
[327407790,1716045061670,-500.0,0.00030131,2]
[327407791,1716045061681,-500.0,0.00030132,2]
[327407792,1716045061690,-1043.64,0.00030132,2]
[327407793,1716045061699,-1119.19,0.00030132,2]
[327407794,1716045061709,-596.81,0.00030132,2]
[327407795,1716045061718,-1994.59,0.00030132,2]
[327407796,1716045061728,-5522.26,0.00030132,2]
[327407797,1716045061738,-870.82,0.00030133,2]
[327407798,1716045061747,-500.0,0.00030133,2]
[327407799,1716045061756,-500.0,0.00030133,2]
[327407800,1716045061766,-1650.41,0.00030133,2]
[327407801,1716045061775,-500.0,0.00030133,2]
[327407802,1716045061785,-500.0,0.00030133,2]
[327407803,1716045061795,-500.0,0.00030133,2]
[327407804,1716045061804,-500.0,0.00030133,2]
[327407805,1716045061814,-500.0,0.00030133,2]
[327407806,1716045061823,-500.0,0.00030133,2]
[327407807,1716045061832,-500.0,0.00030133,2]
[327407808,1716045061842,-500.0,0.00030133,2]
[327407809,1716045061851,-500.0,0.00030133,2]
[327407810,1716045061860,-500.0,0.00030133,2]
[327407811,1716045061869,-500.0,0.00030133,2]
[327407812,1716045061879,-500.0,0.00030133,2]
[327407813,1716045061889,-500.0,0.00030133,2]
[327407814,1716045061899,-500.0,0.00030133,2]
[327407815,1716045061909,-500.0,0.00030133,2]
[327407816,1716045061918,-500.0,0.00030133,2]
[327407817,1716045061930,-976.21,0.00030133,2]
[327407818,1716045061939,-500.0,0.00030133,2]
[327407819,1716045061949,-500.0,0.00030133,2]
[327407820,1716045061958,-812.72,0.00030133,2]
[327407821,1716045061967,-652.06,0.00030133,2]
[327407822,1716045061977,-500.0,0.00030133,2]
[327407823,1716045061986,-808.14,0.00030133,2]
[327407824,1716045061995,-831.83,0.00030133,2]
[327407825,1716045062005,-500.0,0.00030133,2]
[327407826,1716045062015,-500.0,0.00030133,2]
[327407827,1716045062024,-580.71,0.00030133,2]
[327407828,1716045062034,-450.41649277,0.00030133,2]
[327407829,1716045062102,-500.0,0.00028216,2]
[327407830,1716045062111,-440.67553752,0.0002849,2]
[327407831,1716045062123,-59.32446248,0.0002849,2]
[327407832,1716045062132,-352.85350723,0.00030133,2]
[327407833,1716045062141,-454.39366162,0.00030133,2]
[327407834,1716045062153,-45.60633838,0.00030133,2]
[327407835,1716045062163,-211.29259436,0.00030133,2]
[327407836,1716045062176,-288.70740564,0.00030133,2]
[327407837,1716045062186,-500.0,0.00030133,2]
[327407838,1716045062195,-500.0,0.00030133,2]
[327407839,1716045062205,-2214.71,0.00030133,2]
[327407840,1716045062215,-500.0,0.00030133,2]
[327407841,1716045062225,-839.57,0.00030133,2]
[327407842,1716045062234,-1249.93,0.00030133,2]
[327407843,1716045062243,-5266.85,0.00030133,2]
[327407844,1716045062252,-500.0,0.00030133,2]
[327407845,1716045062261,-406.82,0.00030133,2]
[327407846,1716045062270,-500.0,0.00030133,2]
[327407847,1716045062280,-4861.52,0.00030133,2]
[327407848,1716045062289,-500.0,0.00030133,2]
[327407849,1716045062299,-500.0,0.00030134,2]
[327407850,1716045062308,-522.35,0.00030134,2]
[327407851,1716045062317,-500.0,0.00030134,2]
[327407852,1716045062327,-500.0,0.00030134,2]
[327407853,1716045062336,-500.0,0.00030134,2]
[327407854,1716045062345,-500.0,0.00030134,2]
[327407855,1716045062355,-500.0,0.00030134,2]
[327407856,1716045062365,-500.0,0.00030134,2]
[327407857,1716045062374,-500.0,0.00030134,2]
[327407858,1716045062383,-500.0,0.00030134,2]
[327407859,1716045062392,-500.0,0.00030134,2]
[327407860,1716045062401,-500.0,0.00030134,2]
[327407861,1716045062411,-500.0,0.00030134,2]
[327407862,1716045062420,-500.0,0.00030134,2]
[327407863,1716045062432,-500.0,0.00030134,2]
[327407864,1716045062441,-500.0,0.00030134,2]
[327407865,1716045062450,-500.0,0.00030134,2]
[327407866,1716045062459,-493.98,0.00030134,2]
[327407867,1716045062469,-533.61,0.00030134,2]
[327407868,1716045062478,-500.0,0.00030134,2]
[327407869,1716045062487,-313.09,0.00030134,2]
[327407870,1716045062497,-500.0,0.00030134,2]
[327407871,1716045062506,-500.0,0.00030134,2]
[327407872,1716045062515,-500.0,0.00030134,2]
[327407873,1716045062525,-500.0,0.00030134,2]
[327407874,1716045062535,-1366.41,0.00030134,2]
[327407875,1716045062544,-262.48,0.00030134,2]
[327407876,1716045062555,-500.0,0.00030134,2]
[327407877,1716045062567,-500.0,0.00030134,2]
[327407878,1716045062576,-20.55605509,0.00030134,2]
[327407879,1716045062593,-404.84,0.00028764,2]
[327407880,1716045062603,-479.44394491,0.00030134,2]
[327407881,1716045062613,-500.0,0.00030134,2]
[327407882,1716045062623,-500.0,0.00030134,2]
[327407883,1716045062634,-500.0,0.00030134,2]
[327407884,1716045062644,-500.0,0.00030134,2]
[327407885,1716045062653,-500.0,0.00030134,2]
[327407886,1716045062662,-500.0,0.00030134,2]
[327407887,1716045062673,-722.91,0.00030134,2]
[327407888,1716045062684,-500.0,0.00030134,2]
[327407889,1716045062692,-500.0,0.00030134,2]
[327407890,1716045062701,-500.0,0.00030134,2]
[327407891,1716045062714,-500.0,0.00030134,2]
[327407892,1716045062725,-1099.16,0.00030134,2]
[327407893,1716045062735,-500.0,0.00030134,2]
[327407894,1716045062744,-500.0,0.00030134,2]
[327407895,1716045062754,-500.0,0.00030134,2]
[327407896,1716045062763,-500.0,0.00030134,2]
[327407897,1716045062773,-500.0,0.00030134,2]
[327407898,1716045062782,-500.0,0.00030134,2]
[327407899,1716045062792,-374.12,0.00030134,2]
[327407900,1716045062802,-500.0,0.00030134,2]
[327407901,1716045062811,-500.0,0.00030134,2]
[327407902,1716045062820,-187.10445509,0.00030134,2]
[327407903,1716045062833,-280.62050714,0.00030134,2]
[327407904,1716045062845,-32.27503777,0.00030134,2]
[327407905,1716045062854,-354.50966223,0.00030134,2]
[327407906,1716045062866,-145.49033777,0.00030134,2]
[327407907,1716045062875,-570.03162546,0.00030134,2]
[327407908,1716045062886,-500.0,0.00030134,2]
[327407909,1716045062895,-500.0,0.00030134,2]
[327407910,1716045062904,-1047.14758795,0.00030134,2]
[327407911,1716045062915,-165.11241205,0.00030134,2]
[327407912,1716045062925,-563.08,0.00030134,2]
[327407913,1716045062935,-158.26706461,0.00030134,2]
[327407914,1716045062947,-410.84293539,0.00030134,2]
[327407915,1716045062956,-603.72,0.00030134,2]
[327407916,1716045062966,-500.0,0.00030134,2]
[327407917,1716045062975,-500.0,0.00030134,2]
[327407918,1716045062985,-170.91484503,0.00030134,2]
[327407919,1716045062994,-500.0,0.00030134,2]
[327407920,1716045063004,-500.0,0.00030134,2]
[327407921,1716045063018,-500.0,0.00030134,2]
[327407922,1716045063028,-443.16208841,0.00030134,2]
[327407923,1716045063040,-56.83791159,0.00030134,2]
[327407924,1716045063050,-340.08390069,0.00030134,2]
[327407925,1716045063061,-159.91609931,0.00030134,2]
[327407926,1716045063071,-500.0,0.00030134,2]
[327407927,1716045063080,-500.0,0.00030134,2]
[327407928,1716045063090,-286.84,0.00030134,2]
[327407929,1716045063099,-448.84667684,0.00030135,2]
[327407930,1716045063253,-231.70018595,0.0002794,2]
[327407931,1716045063262,-230.90765817,0.0002794,2]
[327407932,1716045063272,-502.26,0.00027942,2]
[327407933,1716045063281,-51.15332316,0.00030135,2]
[327407934,1716045063291,-500.0,0.00030135,2]
[327407935,1716045063300,-500.0,0.00030135,2]
[327407936,1716045063310,-500.0,0.00030135,2]
[327407937,1716045063319,-500.0,0.00030135,2]
[327407938,1716045063328,-500.0,0.00030135,2]
[327407939,1716045063338,-500.0,0.00030135,2]
[327407940,1716045063347,-500.0,0.00030135,2]
[327407941,1716045063357,-500.0,0.00030135,2]
[327407942,1716045063367,-1041.11,0.00030135,2]
[327407943,1716045063376,-500.0,0.00030135,2]
[327407944,1716045063385,-151.0,0.00030273,7]
[327407945,1716045063395,-151.0,0.00030273,7]
[327407946,1716045063404,-151.0,0.00030273,7]
[327407947,1716045063414,-151.0,0.00030273,7]
[327407948,1716045063423,-151.0,0.00030273,7]
[327407949,1716045063434,-151.0,0.00030273,7]
[327407950,1716045063443,-233.66254,0.00030273,7]
[327407951,1716045063452,-151.0,0.00030273,7]
[327407952,1716045063462,-257.051576,0.00030273,7]
[327407953,1716045063472,-151.0,0.00030273,7]
[327407954,1716045063481,-150.0,0.0003038,7]
[327407955,1716045063491,-500.0,0.00030406,2]
[327407956,1716045063500,-1043.64,0.00030406,2]
[327407957,1716045063510,-1119.19,0.00030406,2]
[327407958,1716045063519,-596.81,0.00030406,2]
[327407959,1716045063529,-1994.59,0.00030406,2]
[327407960,1716045063539,-5522.26,0.00030406,2]
[327407961,1716045063548,-500.0,0.00030407,2]
[327407962,1716045063558,-500.0,0.00030407,2]
[327407963,1716045063567,-1650.41,0.00030407,2]
[327407964,1716045063577,-500.0,0.00030407,2]
[327407965,1716045063587,-500.0,0.00030407,2]
[327407966,1716045063596,-500.0,0.00030407,2]
[327407967,1716045063606,-500.0,0.00030407,2]
[327407968,1716045063616,-500.0,0.00030407,2]
[327407969,1716045063627,-500.0,0.00030407,2]
[327407970,1716045063640,-500.0,0.00030407,2]
[327407971,1716045063649,-500.0,0.00030407,2]
[327407972,1716045063659,-500.0,0.00030407,2]
[327407973,1716045063671,-500.0,0.00030407,2]
[327407974,1716045063682,-500.0,0.00030407,2]
[327407975,1716045063692,-500.0,0.00030407,2]
[327407976,1716045063701,-500.0,0.00030407,2]
[327407977,1716045063711,-500.0,0.00030407,2]
[327407978,1716045063723,-500.0,0.00030407,2]
[327407979,1716045063733,-500.0,0.00030407,2]
[327407980,1716045063743,-976.21,0.00030407,2]
[327407981,1716045063753,-500.0,0.00030407,2]
[327407982,1716045063763,-500.0,0.00030407,2]
[327407983,1716045063772,-812.72,0.00030407,2]
[327407984,1716045063781,-652.06,0.00030407,2]
[327407985,1716045063791,-500.0,0.00030407,2]
[327407986,1716045063800,-808.14,0.00030407,2]
[327407987,1716045063809,-831.83,0.00030407,2]
[327407988,1716045063819,-603.91,0.00030407,2]
[327407989,1716045063829,-500.0,0.00030407,2]
[327407990,1716045063839,-580.71,0.00030407,2]
[327407991,1716045063849,-803.27,0.00030407,2]
[327407992,1716045063858,-500.0,0.00030407,2]
[327407993,1716045063868,-500.0,0.00030407,2]
[327407994,1716045063878,-500.0,0.00030407,2]
[327407995,1716045063888,-500.0,0.00030407,2]
[327407996,1716045063898,-2214.71,0.00030407,2]
[327407997,1716045063908,-517.21,0.00030407,2]
[327407998,1716045063917,-839.57,0.00030407,2]
[327407999,1716045063926,-1249.93,0.00030407,2]
[327408000,1716045063936,-151.0,0.00030407,7]
[327408001,1716045063946,-5266.85,0.00030407,2]
[327408002,1716045063954,-500.0,0.00030407,2]
[327408003,1716045063963,-500.0,0.00030407,2]
[327408004,1716045063972,-4861.52,0.00030407,2]
[327408005,1716045063981,-173.68,0.00030407,2]
[327408006,1716045063990,-500.0,0.00030408,2]
[327408007,1716045063999,-500.0,0.00030408,2]
[327408008,1716045064008,-500.0,0.00030408,2]
[327408009,1716045064018,-500.0,0.00030408,2]
[327408010,1716045064028,-500.0,0.00030408,2]
[327408011,1716045064037,-500.0,0.00030408,2]
[327408012,1716045064047,-500.0,0.00030408,2]
[327408013,1716045064057,-500.0,0.00030408,2]
[327408014,1716045064066,-500.0,0.00030408,2]
[327408015,1716045064076,-500.0,0.00030408,2]
[327408016,1716045064086,-500.0,0.00030408,2]
[327408017,1716045064096,-500.0,0.00030408,2]
[327408018,1716045064106,-500.0,0.00030408,2]
[327408019,1716045064115,-500.0,0.00030408,2]
[327408020,1716045064124,-500.0,0.00030408,2]
[327408021,1716045064134,-533.61,0.00030408,2]
[327408022,1716045064144,-500.0,0.00030408,2]
[327408023,1716045064154,-500.0,0.00030408,2]
[327408024,1716045064163,-500.0,0.00030408,2]
[327408025,1716045064174,-500.0,0.00030408,2]
[327408026,1716045064185,-500.0,0.00030408,2]
[327408027,1716045064195,-1366.41,0.00030408,2]
[327408028,1716045064204,-500.0,0.00030408,2]
[327408029,1716045064214,-158.3,0.00030408,2]
[327408030,1716045064224,-500.0,0.00030408,2]
[327408031,1716045064233,-500.0,0.00030408,2]
[327408032,1716045064245,-500.0,0.00030408,2]
[327408033,1716045064256,-500.0,0.00030408,2]
[327408034,1716045064265,-500.0,0.00030408,2]
[327408035,1716045064275,-500.0,0.00030408,2]
[327408036,1716045064284,-722.91,0.00030408,2]
[327408037,1716045064293,-500.0,0.00030408,2]
[327408038,1716045064303,-500.0,0.00030408,2]
[327408039,1716045064312,-500.0,0.00030408,2]
[327408040,1716045064321,-500.0,0.00030408,2]
[327408041,1716045064331,-1099.16,0.00030408,2]
[327408042,1716045064341,-500.0,0.00030408,2]
[327408043,1716045064350,-500.0,0.00030408,2]
[327408044,1716045064360,-500.0,0.00030408,2]
[327408045,1716045064369,-500.0,0.00030408,2]
[327408046,1716045064379,-500.0,0.00030408,2]
[327408047,1716045064389,-500.0,0.00030408,2]
[327408048,1716045064399,-500.0,0.00030408,2]
[327408049,1716045064534,-500.0,0.00030408,2]
[327408050,1716045064545,-244.9,0.00030408,2]
[327408051,1716045064555,-500.0,0.00030408,2]
[327408052,1716045064565,-500.0,0.00030408,2]
[327408053,1716045064575,-500.0,0.00030408,2]
[327408054,1716045064585,-1212.26,0.00030408,2]
[327408055,1716045064594,-563.08,0.00030408,2]
[327408056,1716045064604,-569.11,0.00030408,2]
[327408057,1716045064614,-603.72,0.00030408,2]
[327408058,1716045064625,-151.0,0.00030408,7]
[327408059,1716045064639,-584.366467,0.00030408,7]
[327408060,1716045064648,-584.366467,0.00030408,7]
[327408061,1716045064658,-500.0,0.00030408,2]
[327408062,1716045064668,-151.0,0.00030408,7]
[327408063,1716045064679,-500.0,0.00030408,2]
[327408064,1716045064689,-500.0,0.00030408,2]
[327408065,1716045064698,-500.0,0.00030408,2]